bitfinex/quotes_SOLUSD_20241103
["timestamp","ask_amount","ask_price","bid_price","bid_amount"]
[1730672924846,10.33082472,163.2,163.18,2.0212169]
[1730672925047,10.33082472,163.2,163.16,21.4512]
[1730672925248,10.33082472,163.2,163.17,2.02140734]
[1730672925452,10.33082472,163.2,163.18,2.02140734]
[1730672925769,10.33082472,163.2,163.16,24.68412966]
[1730672925970,10.33082472,163.2,163.17,2.02148618]
[1730672926163,10.33082472,163.2,163.18,2.02148618]
[1730672926360,10.33082472,163.2,163.16,21.4512]
[1730672926553,10.33082472,163.2,163.17,2.02152088]
[1730672926768,10.33082472,163.2,163.18,2.02152088]
[1730672926963,10.33082472,163.2,163.16,24.68412966]
[1730672927176,10.33082472,163.2,163.17,2.0215209]
[1730672927370,10.33082472,163.2,163.18,2.0215209]
[1730672927554,10.33082472,163.2,163.16,21.4512]
[1730672927755,10.33082472,163.2,163.17,2.02178578]
[1730672927966,10.33082472,163.2,163.18,2.02178578]
[1730672928181,10.33082472,163.21,163.16,15.3223]
[1730672928366,10.33082472,163.21,163.17,2.02208706]
[1730672928572,10.33082472,163.21,163.18,2.02208706]
[1730672928874,10.33082472,163.21,163.16,15.3223]
[1730672929078,10.33082472,163.21,163.17,2.02208616]
[1730672929260,10.33082472,163.21,163.18,2.02208616]
[1730672929460,10.33082472,163.21,163.17,3.23633615]
[1730672929659,10.33082472,163.21,163.18,2.0225686]
[1730672929862,10.33082472,163.21,163.17,3.23633615]
[1730672930082,10.33082472,163.21,163.18,2.02261817]
[1730672930280,10.33082472,163.21,163.16,21.4509]
[1730672930477,10.33082472,163.2,163.16,21.4509]
[1730672930684,10.33082472,163.2,163.17,5.26031748]
[1730672930878,10.33082472,163.2,163.18,2.0230409]
[1730672931070,10.33082472,163.2,163.17,3.23728507]
[1730672931379,10.33082472,163.2,163.18,2.02302522]
[1730672931574,10.33082472,163.2,163.19,2.02302522]
[1730672932872,10.33082472,163.21,163.19,2.02302522]
[1730672933172,10.33082472,163.21,163.16,21.4509]
[1730672933376,10.33082472,163.21,163.17,5.26443123]
[1730672933576,10.33082472,163.21,163.18,5.26443123]
[1730672933786,10.33082472,163.21,163.19,2.02462432]
[1730672934079,10.33082472,163.21,163.17,3.23999805]
[1730672934286,10.33082472,163.21,163.18,5.26620616]
[1730672934460,10.33082472,163.21,163.19,2.02474024]
[1730672934662,10.33082472,163.21,163.2,2.02559739]
[1730672937777,10.33082472,163.21,163.2,2.02555238]
[1730672947282,10.33082472,163.21,163.2,2.02317632]
[1730672947795,10.33082472,163.21,163.2,2.0231407]
[1730672950180,10.33082472,163.21,163.17,9.36597416]
[1730672950389,10.33082472,163.21,163.18,5.26054522]
[1730672950597,10.33082472,163.21,163.19,2.02312687]
[1730672950801,10.33082472,163.21,163.2,2.02312687]
[1730672953101,20.0,163.2,163.17,3.23747416]
[1730672953406,10.33082472,163.18,163.17,3.23747416]
[1730672953887,10.33082472,163.18,163.17,8.49671022]
[1730672954085,10.33082472,163.18,163.17,5.25923606]
[1730672954282,16.45902472,163.18,163.17,5.25923606]
[1730672954586,16.45902472,163.18,163.17,5.25930995]
[1730672958009,16.45902472,163.18,163.17,5.25957248]
[1730672961505,16.45902472,163.18,163.17,5.25955202]
[1730672962805,16.45902472,163.18,163.17,2.02274614]
[1730672965109,16.45902472,163.18,163.17,2.02223667]
[1730672967687,36.45902472,163.18,163.17,2.02223667]
[1730672967889,20.0,163.17,163.11,9.36291435]
[1730672968195,10.33082472,163.14,163.12,5.25226852]
[1730672968503,10.33082472,163.15,163.11,6.1305]
[1730672968703,10.33082472,163.15,163.12,5.2495274]
[1730672969017,10.33082472,163.15,163.13,2.01889048]
[1730672969193,10.33082472,163.15,163.14,2.01889048]
[1730672970490,10.33082472,163.15,163.12,3.22868989]
[1730672970695,10.33082472,163.15,163.13,2.01762495]
[1730672970896,10.33082472,163.15,163.12,3.22868989]
[1730672971101,10.33082472,163.15,163.13,2.01762567]
[1730672971312,10.33082472,163.15,163.12,3.22868989]
[1730672971519,10.33082472,163.15,163.13,2.01711158]
[1730672971698,10.33082472,163.15,163.12,3.22868989]
[1730672971899,10.33082472,163.15,163.13,2.01711086]
[1730672972103,10.33082472,163.15,163.11,21.4575]
[1730672972621,10.33082472,163.15,163.12,2.01705843]
[1730672972919,10.33082472,163.15,163.13,2.01705843]
[1730672973220,16.45972472,163.16,163.11,24.68529026]
[1730672973518,16.45972472,163.16,163.12,2.01628535]
[1730672973817,16.45972472,163.16,163.13,2.01628535]
[1730672973989,16.45972472,163.16,163.11,24.68529026]
[1730672974191,16.45972472,163.16,163.12,2.01629708]
[1730672974421,16.45972472,163.16,163.13,2.01629708]
[1730672974607,16.45972472,163.16,163.11,24.68529026]
[1730672974800,16.45972472,163.16,163.12,2.01596011]
[1730672975002,16.45972472,163.16,163.13,2.01596011]
[1730672975215,16.45972472,163.16,163.11,24.68529026]
[1730672975415,16.45972472,163.16,163.12,2.01564747]
[1730672975711,16.45972472,163.16,163.13,2.01564747]
[1730672975911,16.45972472,163.16,163.11,24.68529026]
[1730672976121,16.45972472,163.16,163.12,2.01564751]
[1730672976320,16.45972472,163.16,163.13,2.01564751]
[1730672976523,16.45972472,163.16,163.11,24.68529026]
[1730672976524,16.45972472,163.16,163.12,2.01542344]
[1730672976730,16.45972472,163.16,163.11,24.6825889]
[1730672976899,16.45972472,163.16,163.12,2.01542535]
[1730672977096,10.33082472,163.15,163.11,18.5520889]
[1730672977414,10.33082472,163.15,163.12,2.01542247]
[1730672977616,10.33082472,163.15,163.11,18.5520889]
[1730672977822,10.33082472,163.15,163.12,2.01513999]
[1730672978029,10.33082472,163.15,163.11,18.5520889]
[1730672978223,10.33082472,163.15,163.12,2.01514067]
[1730672978429,10.33082472,163.15,163.11,18.5520889]
[1730672978630,10.33082472,163.15,163.12,2.01493662]
[1730672978806,10.33082472,163.15,163.11,18.5520889]
[1730672979005,20.0,163.17,163.12,2.01493708]
[1730672979208,36.45962472,163.17,163.12,6.1304]
[1730672979719,26.1288,163.17,163.12,6.1304]
[1730672980024,26.1288,163.17,163.12,21.4565]
[1730672981915,36.45962472,163.17,163.12,15.3261]
[1730672982824,20.0,163.17,163.12,15.3261]
[1730672984025,26.1287,163.17,163.12,21.4565]
[1730672987211,36.45952472,163.17,163.12,15.3261]
[1730672988715,10.33082472,163.16,163.12,15.3261]
[1730672990317,16.45972472,163.16,163.12,15.3261]
[1730672992812,6.1289,163.16,163.12,15.3261]
[1730672996315,6.1289,163.16,163.13,2.01459467]
[1730672996520,6.1289,163.16,163.12,15.3261]
[1730672996733,6.1289,163.16,163.13,2.01458739]
[1730672996920,6.1289,163.16,163.12,15.3261]
[1730672997121,6.1289,163.16,163.13,2.01459453]
[1730672997338,6.1289,163.16,163.12,15.3261]
[1730672997538,6.1289,163.16,163.13,2.01513423]
[1730672997744,6.1289,163.16,163.12,15.3261]
[1730672997941,6.1289,163.16,163.13,2.01524073]
[1730672998224,6.1289,163.16,163.12,15.3261]
[1730672998427,6.1289,163.16,163.13,2.01554678]
[1730672998621,6.1289,163.16,163.12,15.3261]
[1730672998819,6.1289,163.16,163.13,2.01550449]
[1730672999040,6.1289,163.16,163.12,15.3261]
[1730672999238,6.1289,163.16,163.13,2.01547149]
[1730672999435,6.1289,163.16,163.11,9.35389421]
[1730672999636,6.1289,163.16,163.12,2.01562726]
[1730672999939,16.45972472,163.16,163.13,2.01562726]
[1730673000121,16.45972472,163.16,163.11,9.35389421]
[1730673000324,16.45972472,163.16,163.12,2.01580996]
[1730673000522,6.1289,163.16,163.13,2.01580996]
[1730673000745,6.1289,163.16,163.11,9.35389421]
[1730673000934,6.1289,163.16,163.12,2.01577106]
[1730673001129,6.1289,163.16,163.13,2.01577106]
[1730673001328,6.1289,163.16,163.11,9.35389421]
[1730673001533,6.1289,163.16,163.12,2.0167357]
[1730673001837,6.1289,163.16,163.13,2.0167357]
[1730673002035,6.1289,163.16,163.11,9.35389421]
[1730673002225,6.1289,163.16,163.12,2.01681746]
[1730673002426,6.1289,163.16,163.13,2.01681746]
[1730673002737,6.1289,163.16,163.11,9.35389421]
[1730673002939,6.1289,163.16,163.12,2.01703436]
[1730673003244,6.1289,163.16,163.13,2.01703436]
[1730673003651,6.1289,163.16,163.12,3.22309421]
[1730673003846,30.33082472,163.17,163.13,2.01728252]
[1730673004050,6.1289,163.16,163.14,2.01728252]
[1730673004227,6.1289,163.16,163.12,6.1303]
[1730673004228,6.1289,163.16,163.12,9.35339421]
[1730673004546,6.1286,163.17,163.13,2.01759426]
[1730673004738,6.1286,163.17,163.14,2.01759426]
[1730673004948,6.1286,163.17,163.12,21.4564]
[1730673005148,16.45902472,163.18,163.13,5.24594334]
[1730673005467,0.3167613,163.22,163.17,10.33082472]
[1730673005628,0.3167613,163.22,163.18,2.01760399]
[1730673005946,0.3167613,163.22,163.19,2.01760399]
[1730673006139,0.3167613,163.22,163.18,9.35646594]
[1730673006334,0.3167613,163.22,163.19,2.01701861]
[1730673006541,0.3167613,163.22,163.2,2.01701861]
[1730673006742,0.3167613,163.22,163.17,15.3209]
[1730673006936,0.3167613,163.22,163.18,6.45444434]
[1730673007257,0.3167613,163.22,163.19,2.01675726]
[1730673007422,0.3167613,163.22,163.2,2.01675726]
[1730673007622,0.3167613,163.22,163.18,5.24397655]
[1730673007837,0.3167613,163.22,163.19,2.01603155]
[1730673008045,0.3167613,163.22,163.18,11.37207655]
[1730673008240,0.3167613,163.22,163.19,2.01528707]
[1730673008552,0.3167613,163.22,163.18,8.14485343]
[1730673008847,6.4436613,163.22,163.19,2.0153909]
[1730673009052,6.4436613,163.22,163.18,2.01675343]
[1730673009053,0.3167613,163.22,163.18,8.14495343]
[1730673009549,0.3167613,163.22,163.19,2.01468717]
[1730673009856,0.3167613,163.22,163.18,8.14495343]
[1730673012153,0.3167613,163.22,163.18,10.15646799]
[1730673013724,0.3167613,163.22,163.19,10.33082472]
[1730673014751,0.3167613,163.22,163.2,10.33082472]
[1730673014936,0.3167613,163.22,163.21,10.33082472]
[1730673016056,0.3167613,163.22,163.21,16.45782472]
[1730673016745,0.3167613,163.22,163.21,18.46831804]
[1730673018055,0.3167613,163.22,163.21,21.68502727]
[1730673018958,0.3167613,163.22,163.21,18.46831804]
[1730673021035,0.3167613,163.22,163.21,18.59380804]
[1730673022056,0.3167613,163.22,163.21,42.57069204]
[1730673022261,0.3167613,163.22,163.21,18.59380804]
[1730673022559,0.3167613,163.22,163.21,18.69380804]
[1730673023846,0.3167613,163.22,163.21,25.42010804]
[1730673024263,0.3167613,163.22,163.21,23.40961472]
[1730673024945,0.3167613,163.22,163.21,25.41295936]
[1730673025150,0.3167613,163.22,163.21,49.18984336]
[1730673026265,0.3167613,163.22,163.21,49.18883075]
[1730673031256,0.3167613,163.22,163.21,49.18409932]
[1730673032158,0.3167613,163.22,163.21,47.18649872]
[1730673034552,0.3167613,163.22,163.21,49.18335692]
[1730673035046,0.3167613,163.22,163.21,47.18649872]
[1730673035473,0.3167613,163.22,163.21,49.1832529]
[1730673036545,0.3167613,163.22,163.21,49.18320872]
[1730673038568,0.3167613,163.3,163.25,0.1]
[1730673038765,0.3167613,163.3,163.27,10.33082472]
[1730673041158,0.3167613,163.3,163.28,21.4355]
[1730673041877,0.3167613,163.3,163.28,31.76632472]
[1730673046657,0.3167613,163.3,163.29,16.45482472]
[1730673048291,0.3167613,163.3,163.29,16.78031472]
[1730673048471,0.3167613,163.3,163.29,18.78006431]
[1730673049465,0.3167613,163.3,163.29,42.55694831]
[1730673051379,0.3167613,163.3,163.29,45.76086883]
[1730673056482,0.3167613,163.3,163.29,45.66086883]
[1730673056680,0.3167613,163.3,163.29,45.76086883]
[1730673058389,0.3167613,163.3,163.29,40.55719872]
[1730673058563,0.3167613,163.3,163.29,45.76610746]
[1730673059784,0.3167613,163.3,163.29,21.66373346]
[1730673059978,0.3167613,163.3,163.29,11.33290874]
[1730673060184,0.3167613,163.3,163.29,2.00326895]
[1730673060381,0.3167613,163.3,163.29,8.12726895]
[1730673060567,0.3167613,163.3,163.29,11.33290874]
[1730673062479,0.3167613,163.3,163.29,5.20890874]
[1730673062678,0.3167613,163.3,163.29,2.00326895]
[1730673062874,0.3167613,163.3,163.29,8.12726895]
[1730673064378,0.3167613,163.3,163.29,6.124]
[1730673064581,0.3167613,163.3,163.29,8.12943227]
[1730673065471,0.3167613,163.3,163.29,2.00543227]
[1730673068186,0.3167613,163.3,163.29,2.00654624]
[1730673069080,0.3167613,163.3,163.28,21.4355]
[1730673070197,0.3167613,163.3,163.29,2.00765916]
[1730673070491,16.77118602,163.3,163.25,6.35904008]
[1730673070687,10.33082472,163.27,163.25,6.35904008]
[1730673071072,10.33082472,163.27,163.25,8.36709348]
[1730673071288,10.33082472,163.27,163.25,6.35904008]
[1730673071495,10.33082472,163.27,163.25,8.36731596]
[1730673071784,10.33082472,163.28,163.25,6.35904008]
[1730673071987,10.33082472,163.28,163.25,8.36731778]
[1730673072193,10.33082472,163.28,163.25,6.35904008]
[1730673072516,10.33082472,163.28,163.25,8.36731778]
[1730673072671,10.33082472,163.28,163.25,6.35904008]
[1730673072873,10.33082472,163.28,163.25,8.36731778]
[1730673073073,10.33082472,163.28,163.25,6.35904008]
[1730673073285,10.33082472,163.28,163.25,8.36731778]
[1730673073502,10.33082472,163.28,163.25,6.35904008]
[1730673073788,10.33082472,163.28,163.25,8.36731778]
[1730673073994,16.45492472,163.29,163.25,6.35904008]
[1730673074174,16.45492472,163.29,163.25,8.36731778]
[1730673074371,16.45492472,163.29,163.25,6.35904008]
[1730673074689,16.45492472,163.29,163.25,8.36731778]
[1730673075471,10.64758602,163.3,163.25,14.49261778]
[1730673075676,10.64758602,163.3,163.25,22.8151648]
[1730673075677,0.3167613,163.3,163.25,22.8151648]
[1730673075993,10.64758602,163.3,163.25,12.48434008]
[1730673076294,10.33082472,163.29,163.25,27.79824008]
[1730673079883,10.33082472,163.28,163.25,6.35904008]
[1730673080089,10.33082472,163.28,163.25,8.36698421]
[1730673082204,10.33082472,163.27,163.25,8.36698421]
[1730673084403,10.33082472,163.27,163.25,6.35904008]
[1730673085405,10.33082472,163.28,163.25,27.79794008]
[1730673086393,10.33082472,163.28,163.25,21.67244008]
[1730673088011,10.33082472,163.27,163.25,21.67244008]
[1730673100195,10.33082472,163.27,163.25,6.35904008]
[1730673103223,10.33082472,163.27,163.25,8.36702288]
[1730673103413,10.33082472,163.27,163.25,6.35904008]
[1730673103609,10.33082472,163.27,163.25,8.36744714]
[1730673105219,10.33082472,163.27,163.25,6.35904008]
[1730673106920,10.33082472,163.28,163.25,6.35904008]
[1730673107302,10.33082472,163.28,163.26,2.01016377]
[1730673108310,10.33082472,163.28,163.25,6.35904008]
[1730673108596,10.33082472,163.28,163.26,2.01046623]
[1730673108797,10.33082472,163.28,163.25,6.35904008]
[1730673109012,10.33082472,163.28,163.26,2.01043548]
[1730673109222,10.33082472,163.28,163.25,6.35904008]
[1730673109399,10.33082472,163.28,163.26,2.0108828]
[1730673109598,10.33082472,163.28,163.25,6.35904008]
[1730673109801,10.33082472,163.28,163.26,2.01086632]
[1730673110002,10.33082472,163.28,163.25,6.35904008]
[1730673110308,10.33082472,163.28,163.26,2.01083588]
[1730673110525,10.33082472,163.28,163.25,9.57495281]
[1730673110817,10.33082472,163.28,163.26,2.01133405]
[1730673111123,16.45542472,163.28,163.25,9.57495281]
[1730673111311,10.33082472,163.27,163.26,2.01194103]
[1730673113317,10.33082472,163.27,163.26,5.23169628]
[1730673113914,10.33082472,163.27,163.25,6.35904008]
[1730673114101,10.33082472,163.27,163.26,5.23223174]
[1730673116521,10.33082472,163.28,163.26,5.23223174]
[1730673116726,10.33082472,163.28,163.27,5.23223174]
[1730673118499,16.45522472,163.28,163.27,5.23223174]
[1730673119619,36.45522472,163.28,163.27,5.23223174]
[1730673119823,36.45522472,163.28,163.27,2.01223846]
[1730673123621,36.45522472,163.28,163.27,2.01596972]
[1730673126731,36.45522472,163.28,163.21,15.3172]
[1730673126923,10.33082472,163.26,163.22,2.01491897]
[1730673127122,10.33082472,163.26,163.23,2.01491897]
[1730673127321,10.33082472,163.26,163.21,21.4442]
[1730673127525,10.33082472,163.26,163.22,2.01495351]
[1730673127726,10.33082472,163.26,163.23,2.01495351]
[1730673127917,10.33082472,163.26,163.24,2.01495351]
[1730673128235,10.33082472,163.26,163.25,2.01495351]
[1730673130536,16.45592472,163.26,163.25,2.01495351]
[1730673131423,10.33082472,163.26,163.25,2.01495351]
[1730673131623,16.45592472,163.26,163.25,2.01495351]
[1730673131840,36.45592472,163.26,163.25,2.01495351]
[1730673133341,60.35829872,163.26,163.25,2.01495351]
[1730673133538,20.0,163.25,163.19,6.1277]
[1730673133833,10.33082472,163.23,163.2,2.01451484]
[1730673134033,10.33082472,163.23,163.19,6.1277]
[1730673134034,10.33082472,163.23,163.21,2.01451484]
[1730673134238,10.33082472,163.23,163.22,2.01451484]
[1730673136640,16.45692472,163.24,163.22,2.01451484]
[1730673136820,16.45692472,163.24,163.23,2.01451484]
[1730673139150,16.45692472,163.24,163.19,6.1277]
[1730673139453,16.45692472,163.24,163.2,2.01335778]
[1730673139628,16.45692472,163.24,163.21,2.01335778]
[1730673139942,16.45542472,163.28,163.22,23.45665778]
[1730673140136,10.33082472,163.27,163.23,2.01335778]
[1730673140323,10.33082472,163.27,163.22,21.4433]
[1730673140527,10.33082472,163.27,163.23,2.01285797]
[1730673140836,10.33082472,163.27,163.22,21.4433]
[1730673141026,16.45582472,163.27,163.23,2.01309485]
[1730673141226,16.45582472,163.27,163.22,21.4433]
[1730673141544,16.45582472,163.27,163.23,2.01310022]
[1730673141740,16.45582472,163.27,163.24,2.01307294]
[1730673141950,16.45582472,163.27,163.22,21.4433]
[1730673142133,16.45582472,163.27,163.22,15.3167]
[1730673142444,10.33082472,163.26,163.23,2.01290135]
[1730673142744,10.33082472,163.26,163.24,2.01290135]
[1730673142945,10.33082472,163.26,163.22,15.3167]
[1730673143137,10.33082472,163.26,163.23,2.01276412]
[1730673143317,10.33082472,163.26,163.24,2.01276412]
[1730673143521,10.33082472,163.26,163.22,15.3167]
[1730673143743,10.33082472,163.26,163.23,2.01278159]
[1730673144044,10.33082472,163.26,163.24,2.01278159]
[1730673144236,10.33082472,163.26,163.22,21.4433]
[1730673144536,10.33082472,163.26,163.23,2.01272733]
[1730673144740,10.33082472,163.26,163.24,2.01272733]
[1730673144917,10.33082472,163.26,163.22,15.3167]
[1730673145122,10.33082472,163.26,163.23,2.01260497]
[1730673145342,10.33082472,163.26,163.24,2.01260497]
[1730673145533,10.33082472,163.26,163.22,15.3167]
[1730673145734,10.33082472,163.26,163.23,2.01269768]
[1730673145935,10.33082472,163.26,163.24,2.01269768]
[1730673146138,10.33082472,163.26,163.22,15.3167]
[1730673146330,10.33082472,163.26,163.23,2.01262309]
[1730673146525,10.33082472,163.26,163.24,2.01262309]
[1730673146727,10.33082472,163.26,163.22,15.3167]
[1730673146932,10.33082472,163.26,163.23,2.01251086]
[1730673147133,10.33082472,163.26,163.24,2.01251086]
[1730673147336,10.33082472,163.26,163.22,21.4433]
[1730673147533,10.33082472,163.26,163.23,2.01260903]
[1730673147750,10.33082472,163.26,163.24,2.01260903]
[1730673147933,10.33082472,163.26,163.22,21.4433]
[1730673148135,10.33082472,163.26,163.23,2.01267264]
[1730673148448,10.33082472,163.26,163.24,2.01267264]
[1730673148649,10.33082472,163.26,163.22,21.4433]
[1730673148848,10.33082472,163.26,163.23,2.01258566]
[1730673149149,10.33082472,163.26,163.24,2.01258566]
[1730673149349,10.33082472,163.26,163.22,15.3167]
[1730673149550,10.33082472,163.26,163.23,2.01254445]
[1730673149746,10.33082472,163.26,163.24,2.01254445]
[1730673149948,10.33082472,163.26,163.22,15.3167]
[1730673150147,10.33082472,163.26,163.23,2.01259254]
[1730673150444,10.33082472,163.26,163.24,2.01259254]
[1730673150630,10.33082472,163.26,163.22,15.3167]
[1730673150830,10.33082472,163.26,163.23,2.01252862]
[1730673151048,10.33082472,163.26,163.24,2.01252862]
[1730673151345,10.33082472,163.26,163.22,15.3167]
[1730673151555,10.33082472,163.26,163.23,2.01267669]
[1730673151739,10.33082472,163.26,163.24,2.01267669]
[1730673151942,10.33082472,163.26,163.22,15.3167]
[1730673152252,10.33082472,163.26,163.23,2.01273947]
[1730673152457,10.33082472,163.26,163.24,2.01273947]
[1730673152641,10.33082472,163.26,163.22,15.3167]
[1730673152852,10.33082472,163.26,163.23,2.01274364]
[1730673153150,10.33082472,163.26,163.24,2.01274364]
[1730673153330,10.33082472,163.26,163.22,15.3167]
[1730673153530,10.33082472,163.26,163.23,2.01275269]
[1730673153737,10.33082472,163.26,163.24,2.01275269]
[1730673153937,10.33082472,163.26,163.22,15.3167]
[1730673154227,10.33082472,163.26,163.23,2.01275169]
[1730673154450,16.45602472,163.26,163.24,2.01275169]
[1730673154748,16.45602472,163.26,163.22,15.3167]
[1730673154954,16.45602472,163.26,163.23,2.0128128]
[1730673155150,16.45602472,163.26,163.24,2.0128128]
[1730673155453,16.45602472,163.26,163.22,21.4434]
[1730673155751,16.45602472,163.26,163.23,2.01286245]
[1730673155954,16.45602472,163.26,163.24,2.01286245]
[1730673156146,16.45602472,163.26,163.22,21.4434]
[1730673156347,16.45602472,163.26,163.23,2.01292746]
[1730673156547,16.45602472,163.26,163.24,2.01292746]
[1730673156857,16.45602472,163.26,163.22,15.3167]
[1730673157356,16.45602472,163.26,163.23,2.01295742]
[1730673157552,16.45602472,163.26,163.24,2.01295742]
[1730673157850,16.45602472,163.26,163.22,15.3167]
[1730673158056,16.45602472,163.26,163.23,2.01275955]
[1730673158251,16.45602472,163.26,163.24,2.01275955]
[1730673158455,16.45602472,163.26,163.22,15.3167]
[1730673158635,16.45602472,163.26,163.23,2.01337523]
[1730673158840,16.45602472,163.26,163.24,2.01337523]
[1730673159137,16.45602472,163.26,163.22,15.3167]
[1730673159330,16.45602472,163.26,163.23,2.01347222]
[1730673159531,16.45602472,163.26,163.24,2.01347222]
[1730673159853,16.45602472,163.26,163.22,15.3167]
[1730673160154,16.45602472,163.26,163.23,2.01349354]
[1730673160462,16.45602472,163.26,163.24,2.01361018]
[1730673160642,16.45602472,163.26,163.22,15.3167]
[1730673160843,16.45602472,163.26,163.23,2.01361129]
[1730673161027,16.45602472,163.26,163.24,2.01361129]
[1730673161234,16.45602472,163.26,163.22,15.3167]
[1730673161551,16.45602472,163.26,163.23,2.01387089]
[1730673161751,16.45602472,163.26,163.24,2.01387089]
[1730673161960,16.45602472,163.26,163.22,15.3167]
[1730673163036,16.45602472,163.26,163.24,2.0139961]
[1730673163267,16.45602472,163.26,163.22,15.3167]
[1730673163437,16.45602472,163.26,163.23,2.01419615]
[1730673163735,16.45602472,163.26,163.24,2.01419615]
[1730673163935,16.45602472,163.26,163.22,15.3167]
[1730673164142,16.45602472,163.26,163.23,2.01411521]
[1730673164330,16.45602472,163.26,163.24,2.01411521]
[1730673164531,16.45602472,163.26,163.22,15.3167]
[1730673164750,16.45602472,163.26,163.23,2.01397484]
[1730673164953,16.45602472,163.26,163.24,2.01397484]
[1730673165133,16.45602472,163.26,163.22,15.3167]
[1730673165334,16.45602472,163.26,163.23,2.01389415]
[1730673165541,16.45602472,163.26,163.24,2.01389415]
[1730673165757,16.45602472,163.26,163.22,15.3167]
[1730673165947,16.45602472,163.26,163.23,2.01426645]
[1730673166144,16.45602472,163.26,163.24,2.01426645]
[1730673166354,16.45602472,163.26,163.22,15.3167]
[1730673166550,16.45602472,163.26,163.23,2.0135455]
[1730673166752,16.45602472,163.26,163.24,2.0135455]
[1730673166957,16.45602472,163.26,163.22,15.3167]
[1730673167157,16.45602472,163.26,163.23,2.01034602]
[1730673167363,16.45602472,163.26,163.22,15.3167]
[1730673167536,10.33082472,163.27,163.22,15.3167]
[1730673168851,6.1251,163.26,163.22,15.3167]
[1730673171459,10.33082472,163.26,163.22,15.3167]
[1730673173874,16.45612472,163.26,163.22,15.3167]
[1730673185374,16.45612472,163.26,163.21,10.33082472]
[1730673186781,16.45612472,163.26,163.21,16.45752472]
[1730673187975,16.45612472,163.26,163.2,10.33082472]
[1730673189276,20.0,163.25,163.2,10.33082472]
[1730673189457,20.0,163.25,163.21,6.127]
[1730673195366,30.33082472,163.25,163.21,6.127]
[1730673195565,10.33082472,163.23,163.18,10.33082472]
[1730673195768,10.33082472,163.22,163.17,22.81956874]
[1730673195970,10.33082472,163.22,163.17,38.14096874]
[1730673196280,10.33082472,163.21,163.17,27.81014402]
[1730673196586,10.33082472,163.21,163.17,21.4498]
[1730673198591,10.33082472,163.21,163.17,31.78062472]
[1730673199293,16.45782472,163.22,163.17,31.78062472]
[1730673200086,10.33082472,163.19,163.13,31.78602472]
[1730673200389,10.33082472,163.18,163.13,21.4552]
[1730673200583,10.33082472,163.18,163.14,6.36373385]
[1730673201567,10.33082472,163.18,163.14,12.49333385]
[1730673201877,16.45882472,163.19,163.14,12.49333385]
[1730673202089,16.45882472,163.19,163.14,6.1296]
[1730673202386,10.33082472,163.16,163.11,6.36386286]
[1730673202690,10.33082472,163.15,163.1,22.5346]
[1730673203269,10.33082472,163.15,163.1,15.328]
[1730673203469,10.33082472,163.14,163.1,15.328]
[1730673203670,16.46062472,163.14,163.1,15.328]
[1730673203870,6.1298,163.14,163.1,15.328]
[1730673206182,16.46062472,163.14,163.1,15.328]
[1730673209066,10.33082472,163.13,163.1,15.328]
[1730673211286,10.33082472,163.14,163.1,15.328]
[1730673213684,16.46052472,163.14,163.1,15.328]
[1730673217798,16.46052472,163.14,163.08,6.1319]
[1730673217799,70.0,163.05,163.01,0.3167613]
[1730673218098,10.33082472,163.02,163.01,0.3167613]
[1730673219081,36.46502472,163.02,163.01,0.3167613]
[1730673269752,36.46502472,163.02,163.01,0.3167613]
[1730673278365,6.1349,163.0,162.95,16.46752472]
[1730673279161,6.1349,163.0,162.95,6.1367]
[1730673279374,16.46572472,163.0,162.95,6.1367]
[1730673280681,16.46572472,163.0,162.94,44.1006]
[1730673281277,6.1349,163.0,162.94,54.43142472]
[1730673281655,6.1349,163.0,162.94,22.621]
[1730673281656,10.33082472,162.98,162.94,22.621]
[1730673282073,10.33082472,162.97,162.94,22.621]
[1730673282276,10.33082472,162.98,162.94,22.621]
[1730673282974,10.33082472,162.97,162.94,22.621]
[1730673283866,10.33082472,162.98,162.94,22.621]
[1730673284983,16.46682472,162.98,162.94,22.621]
[1730673286265,16.46682472,162.98,162.93,6.4542613]
[1730673286466,10.33082472,162.97,162.93,6.4542613]
[1730673286785,16.46682472,162.98,162.93,6.4542613]
[1730673287770,10.33082472,162.97,162.93,6.4542613]
[1730673287971,16.46692472,162.97,162.93,6.4542613]
[1730673290370,16.46692472,162.97,162.94,2.0145068]
[1730673290702,16.46692472,162.97,162.93,6.4542613]
[1730673290886,10.33082472,162.98,162.94,2.01449388]
[1730673291062,10.33082472,162.98,162.93,6.4542613]
[1730673291262,10.33082472,162.98,162.94,2.01448481]
[1730673291460,10.33082472,162.98,162.93,6.4542613]
[1730673291672,10.33082472,162.98,162.94,2.01442116]
[1730673291884,10.33082472,162.98,162.93,28.7191613]
[1730673291885,6.136,162.97,162.93,28.7191613]
[1730673292191,6.136,162.97,162.94,2.01442118]
[1730673292376,6.136,162.97,162.93,28.7191613]
[1730673292579,6.136,162.97,162.94,2.01432252]
[1730673292779,16.46682472,162.97,162.93,22.5816613]